bitfinex/quotes_BTCUSD_20241110
["timestamp","ask_amount","ask_price","bid_price","bid_amount"]
[1731215077163,0.30080028,78906.0,78881.0,0.02531]
[1731215077826,0.047,78921.0,78881.0,0.02531]
[1731215077827,0.30080028,78916.0,78881.0,0.02531]
[1731215078048,0.30080028,78927.0,78889.0,0.005]
[1731215078274,0.047,78940.0,78901.0,0.005]
[1731215078275,0.31402438,78937.0,78901.0,0.005]
[1731215078480,0.18977613,78926.0,78912.0,0.02531]
[1731215078781,0.18977613,78934.0,78914.0,0.02531]
[1731215078975,0.18977613,78923.0,78916.0,0.02531]
[1731215079280,0.18977613,78934.0,78916.0,0.02531]
[1731215079463,0.23677613,78940.0,78918.0,0.02531]
[1731215079639,0.001678,78941.0,78926.0,0.02531]
[1731215079859,0.001678,78941.0,78933.0,0.02531]
[1731215080032,0.001678,78941.0,78935.0,0.02531]
[1731215080237,0.001678,78941.0,78937.0,0.21508613]
[1731215080456,0.001678,78941.0,78939.0,0.02531]
[1731215080691,0.001678,78941.0,78940.0,0.04784712]
[1731215083166,0.001678,78941.0,78940.0,0.04284712]
[1731215083374,0.13391902,78941.0,78940.0,0.04284712]
[1731215083572,0.001678,78941.0,78940.0,0.04284712]
[1731215083789,0.24553346,78948.0,78940.0,0.04284712]
[1731215084003,0.37777448,78948.0,78918.0,0.02531]
[1731215084214,0.37777448,78948.0,78933.0,0.02531]
[1731215084628,0.30080028,78938.0,78931.0,0.02531]
[1731215084857,0.03008003,78937.0,78932.0,0.18977613]
[1731215085058,0.13224102,78938.0,78918.0,0.02531]
[1731215085262,0.001,78950.0,78920.0,0.02531]
[1731215085263,0.30080028,78922.0,78920.0,0.02531]
[1731215085494,0.4330413,78922.0,78920.0,0.02531]
[1731215085852,0.4330413,78922.0,78919.0,0.18977613]
[1731215086056,0.4330413,78922.0,78891.0,0.0075346]
[1731215086257,0.04330413,78921.0,78913.0,0.18977613]
[1731215086449,0.04330413,78921.0,78905.0,0.18977613]
[1731215086774,0.04330413,78921.0,78892.0,0.13101566]
[1731215086775,0.30080028,78912.0,78907.0,0.02531]
[1731215087127,0.13224102,78911.0,78909.0,0.02531]
[1731215087351,0.04330413,78910.0,78909.0,0.02531]
[1731215087502,0.17554515,78910.0,78909.0,0.0705471]
[1731215087711,0.04330413,78910.0,78909.0,0.0705471]
[1731215087909,0.30080028,78912.0,78909.0,0.0705471]
[1731215088243,0.30080028,78912.0,78882.0,0.02531]
[1731215088451,0.30080028,78902.0,78895.0,0.02531]
[1731215088862,0.13224102,78901.0,78895.0,0.02531]
[1731215089085,0.13224102,78901.0,78886.0,0.18977613]
[1731215089086,0.30080028,78912.0,78901.0,0.02531]
[1731215089293,0.18977613,78909.0,78901.0,0.02531]
[1731215089506,0.30080028,78912.0,78903.0,0.02531]
[1731215090272,0.0804,78920.0,78908.0,0.02531]
[1731215090505,0.13224102,78919.0,78908.0,0.02531]
[1731215091086,0.30080028,78932.0,78918.0,0.02531]
[1731215091290,0.18977613,78931.0,78920.0,0.02531]
[1731215091461,0.27017613,78940.0,78920.0,0.02531]
[1731215091826,0.27017613,78940.0,78922.0,0.02531]
[1731215092036,0.0465,78949.0,78931.0,0.02531]
[1731215092238,0.19477613,78966.0,78930.0,0.18977613]
[1731215092239,0.30080028,78964.0,78940.0,0.02531]
[1731215092438,0.18977613,78956.0,78940.0,0.02531]
[1731215092746,0.18977613,78955.0,78940.0,0.02531]
[1731215092958,0.30080028,78964.0,78940.0,0.02531]
[1731215093149,0.18977613,78958.0,78942.0,0.02531]
[1731215093283,0.13224102,78957.0,78944.0,0.02531]
[1731215093661,0.05370764,78963.0,78944.0,0.02531]
[1731215093781,0.13224102,78963.0,78952.0,0.02531]
[1731215094400,0.13224102,78963.0,78955.0,0.02531]
[1731215094818,0.0465,78967.0,78958.0,0.02531]
[1731215095025,0.18977613,78981.0,78967.0,0.02531]
[1731215095221,0.18977613,78981.0,78968.0,0.02251771]
[1731215095441,0.19477613,78981.0,78969.0,0.04782771]
[1731215095639,0.30080028,78975.0,78971.0,0.02531]
[1731215095853,0.30080028,78975.0,78974.0,0.21508613]
[1731215096080,0.01321092,78985.0,78974.0,0.04782771]
[1731215096264,0.01321092,78985.0,78976.0,0.02531]
[1731215096463,0.01321092,78985.0,78978.0,0.02531]
[1731215096732,0.01321092,78985.0,78968.0,0.18977613]
[1731215096733,0.01321092,78985.0,78980.0,0.02531]
[1731215096917,0.18977613,78999.0,78979.0,0.02250451]
[1731215096918,0.0046,78995.0,78982.0,0.02531]
[1731215097162,0.30080028,78989.0,78984.0,0.02531]
[1731215097280,0.30080028,78989.0,78966.0,0.0004]
[1731215097480,0.03008003,78988.0,78981.0,0.18977613]
[1731215097718,0.30080028,78989.0,78966.0,0.0004]
[1731215098534,0.30080028,78989.0,78949.0,0.001]
[1731215098535,0.30080028,78989.0,78963.0,0.0004]
[1731215098776,0.0046,78995.0,78973.0,0.18977613]
[1731215098993,0.18977613,78993.0,78974.0,0.12435732]
[1731215099420,0.30080028,79000.0,78975.0,0.18977613]
[1731215099628,0.13224102,78999.0,78994.0,0.03589329]
[1731215099772,0.30080028,78995.0,78993.0,0.03589329]
[1731215099986,0.30080028,78994.0,78993.0,0.03589329]
[1731215100237,0.30080028,78994.0,78978.0,0.18977613]
[1731215100238,0.4330413,78994.0,78989.0,0.03589329]
[1731215100366,0.0046,78996.0,78987.0,0.03589329]
[1731215100367,0.30080028,78990.0,78987.0,0.03589329]
[1731215100586,0.005,78987.0,78965.0,0.18977613]
[1731215100909,0.30080028,78966.0,78965.0,0.18977613]
[1731215101721,0.30080028,78971.0,78961.0,0.0004]
[1731215101942,0.30080028,78971.0,78965.0,0.0004]
[1731215102602,0.30080028,78971.0,78967.0,0.0004]
[1731215103221,0.30080028,78980.0,78968.0,0.12600055]
[1731215103394,0.30080028,78969.0,78963.0,0.0004]
[1731215103601,0.30080028,78969.0,78967.0,0.0004]
[1731215104022,0.30080028,78969.0,78963.0,0.12624018]
[1731215104259,0.30080028,78969.0,78967.0,0.0004]
[1731215105210,0.30080028,78969.0,78961.0,0.18977613]
[1731215105211,0.30080028,78969.0,78956.0,0.0004]
[1731215105515,0.30080028,78958.0,78922.0,0.19310042]
[1731215105700,0.30080028,78958.0,78953.0,0.18977613]
[1731215105901,0.30080028,78958.0,78954.0,0.18977613]
[1731215106132,0.30080028,78958.0,78955.0,0.0004]
[1731215106322,0.03008003,78957.0,78940.0,0.0004]
[1731215106549,0.03008003,78957.0,78925.0,0.02531]
[1731215106550,0.30080028,78941.0,78907.0,0.01]
[1731215106856,0.30080028,78952.0,78919.0,0.005]
[1731215107069,0.30080028,78952.0,78932.0,0.18977613]
[1731215107282,0.18977613,78949.0,78919.0,0.02531]
[1731215107494,0.18977613,78951.0,78933.0,0.02531]
[1731215107913,0.23883377,78951.0,78933.0,0.02531]
[1731215108116,0.23883377,78951.0,78924.0,0.18977613]
[1731215108117,0.13224102,78950.0,78935.0,0.02531]
[1731215108545,0.30080028,78940.0,78935.0,0.02531]
[1731215108695,0.30080028,78940.0,78937.0,0.02531]
[1731215109492,0.30080028,78952.0,78939.0,0.21508613]
[1731215109701,0.30080028,78952.0,78939.0,0.02531]
[1731215109899,0.30080028,78952.0,78941.0,0.02531]
[1731215110099,0.18977613,78951.0,78941.0,0.02531]
[1731215110350,0.18977613,78961.0,78941.0,0.02531]
[1731215110672,0.15121863,78960.0,78941.0,0.02531]
[1731215110814,0.37750028,78972.0,78955.0,0.02531]
[1731215110995,0.13224102,78971.0,78955.0,0.02531]
[1731215111209,0.005,78986.0,78944.0,0.18977613]
[1731215111210,0.26647613,78988.0,78962.0,0.02531]
[1731215111410,0.26647613,78988.0,78957.0,0.18977613]
[1731215111411,0.18977613,78980.0,78964.0,0.02531]
[1731215111785,0.32201715,78988.0,78967.0,0.02531]
[1731215112022,0.30580028,78999.0,78963.0,0.12551951]
[1731215112023,0.01943761,79005.0,78987.0,0.02531]
[1731215112204,0.18977613,78995.0,78987.0,0.02531]
[1731215112445,0.13224102,78994.0,78987.0,0.02531]
[1731215113019,0.13224102,78994.0,78957.0,0.02531]
[1731215113226,0.30580028,79008.0,78991.0,0.02531]
[1731215113572,0.18977613,78996.0,78991.0,0.02531]
[1731215113782,0.005,78985.0,78945.0,0.7335]
[1731215113981,0.005,78985.0,78976.0,0.02531]
[1731215114184,0.01,78985.0,78984.0,0.02531]
[1731215114611,0.0767,78995.0,78984.0,0.02531]
[1731215114810,0.13224102,78994.0,78984.0,0.02531]
[1731215115037,0.20894102,78995.0,78986.0,0.02531]
[1731215115225,0.0208941,78993.0,78986.0,0.02531]
[1731215115350,0.18977613,79003.0,78994.0,0.02531]
[1731215115594,0.13224102,78999.0,78994.0,0.02531]
[1731215116232,0.13224102,78999.0,78983.0,0.02531]
[1731215116446,0.30080028,78998.0,78984.0,0.18977613]
[1731215116655,0.05990439,79023.0,78997.0,0.02531]
[1731215116830,0.18977613,79005.0,78997.0,0.02531]
[1731215117031,0.18977613,79013.0,78985.0,0.12423711]
[1731215117032,0.18977613,79013.0,78999.0,0.02531]
[1731215117433,0.13224102,79019.0,79000.0,0.18977613]
[1731215117651,0.18977613,79014.0,78986.0,0.02531]
[1731215117849,0.03220172,79013.0,78996.0,0.18977613]
[1731215118055,0.18977613,79022.0,78988.0,0.02531]
[1731215118056,0.32201715,79012.0,78988.0,0.02531]
[1731215118238,0.13224102,79012.0,78994.0,0.18977613]
[1731215118674,0.005,79036.0,79005.0,0.18977613]
[1731215118888,0.18977613,79030.0,79022.0,0.03031]
[1731215119102,0.18977613,79030.0,79022.0,0.02531]
[1731215119519,0.18977613,79038.0,79022.0,0.02531]
[1731215119695,0.18977613,79046.0,79022.0,0.14662359]
[1731215120334,0.18977613,79046.0,79023.0,0.18977613]
[1731215120542,0.18977613,79046.0,79023.0,0.31108972]
[1731215120761,0.18977613,79046.0,79024.0,0.02531]
[1731215120963,0.18977613,79029.0,78988.0,0.03031]
[1731215121171,0.16501444,79028.0,79012.0,0.18977613]
[1731215121401,0.13224102,79028.0,79017.0,0.18977613]
[1731215121602,0.000717,79043.0,79014.0,0.18977613]
[1731215122031,0.18977613,79032.0,79003.0,0.02531]
[1731215122237,0.18977613,79032.0,79013.0,0.18977613]
[1731215122462,0.000717,79043.0,79013.0,0.18977613]
[1731215122666,0.000717,79043.0,79021.0,0.18977613]
[1731215122879,0.000717,79043.0,79014.0,0.13224102]
[1731215122880,0.000717,79043.0,79022.0,0.15755102]
[1731215123124,0.000717,79043.0,79023.0,0.02531]
[1731215123322,0.000717,79043.0,79023.0,0.15755102]
[1731215123519,0.000717,79043.0,79026.0,0.02531]
[1731215123988,0.000717,79043.0,79027.0,0.32201715]
[1731215124621,0.000717,79043.0,79028.0,0.18977613]
[1731215124846,0.000717,79043.0,79030.0,0.02531]
[1731215125008,0.000717,79043.0,79032.0,0.02531]
[1731215125224,0.000717,79043.0,79033.0,0.34732715]
[1731215125435,0.18621013,79053.0,79033.0,0.15755102]
[1731215125627,0.18621013,79053.0,79034.0,0.18977613]
[1731215125855,0.6937,79059.0,79034.0,0.18977613]
[1731215126064,0.6937,79059.0,79034.0,0.32201715]
[1731215126208,0.18977613,79070.0,79041.0,0.18977613]
[1731215126404,0.18977613,79070.0,79042.0,0.15755102]
[1731215126672,0.18977613,79056.0,79049.0,0.02531]
[1731215126856,0.18977613,79069.0,79051.0,0.02531]
[1731215127312,0.0001,79072.0,79059.0,0.4633513]
[1731215127601,0.18977613,79068.0,79059.0,0.46400904]
[1731215127821,0.0001,79072.0,79059.0,0.46400904]
[1731215127979,0.0001,79072.0,79059.0,0.16320876]
[1731215128262,0.0001,79072.0,79059.0,0.02849681]
[1731215128263,0.18977613,79069.0,79059.0,0.02849681]
[1731215128369,0.0032461,79067.0,79054.0,0.02531]
[1731215128875,0.0032461,79067.0,79016.0,0.30080028]
[1731215128876,0.18977613,79058.0,79018.0,0.01]
[1731215129080,0.15407234,79057.0,79022.0,0.18977613]
[1731215129290,0.18977613,79044.0,79009.0,0.733]
[1731215129518,0.13477012,79043.0,79020.0,0.18977613]
[1731215129679,0.18977613,79042.0,79021.0,0.13224102]
[1731215129858,0.19230523,79041.0,79021.0,0.13224102]
[1731215130732,0.19230523,79041.0,79022.0,0.00253065]
[1731215131114,0.18977613,79033.0,79023.0,0.13224102]
[1731215131293,0.18977613,79041.0,79023.0,0.13224102]
[1731215131502,0.0025291,79040.0,79023.0,0.13224102]
[1731215132179,0.0025291,79040.0,79024.0,0.00282301]
[1731215132313,0.0025291,79040.0,79025.0,0.13224102]
[1731215132495,0.0025291,79040.0,79025.0,0.09448362]
[1731215132694,0.0025291,79040.0,79026.0,0.00284518]
[1731215132908,0.18977613,79039.0,79027.0,0.13224102]
[1731215133109,0.0025291,79038.0,79027.0,0.13224102]
[1731215133338,0.0025291,79038.0,79028.0,0.0028306]
[1731215133545,0.18977613,79053.0,79032.0,0.005]
[1731215133925,0.13291675,79045.0,79036.0,0.005]
[1731215134124,0.18977613,79053.0,79037.0,0.13224102]
[1731215134318,0.18977613,79045.0,79037.0,0.13505514]
[1731215134455,0.18977613,79053.0,79037.0,0.13505514]
[1731215134663,0.18977613,79045.0,79037.0,0.00281412]
[1731215134862,0.0025291,79044.0,79014.0,0.005]
[1731215135075,0.0025291,79051.0,79023.0,0.18977613]
[1731215135393,0.18977613,79039.0,79024.0,0.13478833]
[1731215135565,0.0025291,79038.0,79024.0,0.13478833]
[1731215136066,0.18977613,79029.0,79024.0,0.00398627]
[1731215136267,0.0025291,79028.0,79024.0,0.00566429]
[1731215136452,0.0025291,79036.0,79009.0,0.27931]
[1731215136651,0.18977613,79031.0,79025.0,0.007522]
[1731215136904,0.0025291,79030.0,79010.0,0.13224102]
[1731215137101,0.03245463,79029.0,79010.0,0.13224102]
[1731215137279,0.03245463,79029.0,78978.0,0.0478]
[1731215137280,0.18977613,79023.0,78978.0,0.0478]
[1731215137507,0.0025291,79022.0,79011.0,0.0056793]
[1731215137662,0.0025291,79022.0,78997.0,0.02531]
[1731215137869,0.0025291,79022.0,78999.0,0.02531]
[1731215138068,0.0025291,79022.0,79001.0,0.02531]
[1731215138313,0.0025291,79022.0,79000.0,0.13224102]
[1731215138314,0.18977613,79015.0,79002.0,0.02531]
[1731215138484,0.0025291,79014.0,79002.0,0.03289089]
[1731215138902,0.0025291,79014.0,79002.0,0.02531]
[1731215139378,0.16448613,79023.0,79003.0,0.15755102]
[1731215139583,0.18977613,79021.0,79010.0,0.005]
[1731215139786,0.49557641,79061.0,79002.0,0.3]
[1731215139787,0.26667613,79061.0,79031.0,0.005]
[1731215139937,0.0025291,79052.0,79032.0,0.02531]
[1731215140142,0.0025291,79052.0,79032.0,0.03088053]
[1731215140346,0.0025291,79052.0,79032.0,0.02531]
[1731215140556,0.0025291,79052.0,79033.0,0.00556826]
[1731215140974,0.0025291,79052.0,79034.0,0.13224102]
[1731215141175,0.0025291,79052.0,79035.0,0.02531]
[1731215141176,0.18977613,79043.0,79035.0,0.02531]
[1731215141472,0.18977613,79043.0,79036.0,0.15755102]
[1731215141682,0.0025291,79042.0,79035.0,0.00452159]
[1731215141889,0.0025291,79042.0,79009.0,0.0502]
[1731215141890,0.0025291,79042.0,79037.0,0.00448126]
[1731215142113,0.0025291,79042.0,79002.0,0.305]
[1731215142325,0.30080028,79040.0,79010.0,0.18977613]
[1731215142531,0.18977613,79033.0,79005.0,0.18977613]
[1731215142746,0.13477012,79032.0,79011.0,0.00458889]
[1731215143159,0.13477012,79032.0,79006.0,0.13224102]
[1731215143359,0.13477012,79032.0,79013.0,0.02531]
[1731215143569,0.18977613,79014.0,79013.0,0.02531]
[1731215143772,0.11329311,79025.0,79013.0,0.02531]
[1731215143980,0.13224102,79024.0,79013.0,0.02531]
[1731215144399,0.13224102,79024.0,79003.0,0.02531]
[1731215144821,0.13224102,79024.0,79004.0,0.00693685]
[1731215144822,0.18977613,79016.0,79004.0,0.00693685]
[1731215145021,0.18134102,79015.0,79004.0,0.00693685]
[1731215145188,0.18134102,79015.0,79003.0,0.02531]
[1731215145792,0.18134102,79015.0,79002.0,0.3]
[1731215146126,0.0491,79015.0,79002.0,0.3]
[1731215146338,0.0491,79015.0,79002.0,0.32531]
[1731215146547,0.18977613,79014.0,79003.0,0.03217814]
[1731215147478,0.16448613,79014.0,79002.0,0.3]
[1731215147700,0.16448613,79014.0,79005.0,0.02531]
[1731215148115,0.16448613,79014.0,79007.0,0.02531]
[1731215148321,0.16448613,79014.0,79009.0,0.02531]
[1731215148495,0.16448613,79014.0,79011.0,0.02531]
[1731215148699,0.16448613,79014.0,79013.0,0.02531]
[1731215148861,0.29672715,79014.0,79013.0,0.02531]
[1731215149054,0.16182374,79014.0,79013.0,0.07597563]
[1731215149264,0.16182374,79014.0,79013.0,0.0702505]
[1731215149463,0.24442374,79014.0,79013.0,0.0702505]
[1731215150822,0.20984102,79014.0,79013.0,0.0702505]
[1731215151455,0.0491,79015.0,79013.0,0.0702505]
[1731215151671,0.0491,79015.0,79014.0,0.0702505]
[1731215151881,0.18134102,79015.0,79014.0,0.0702505]
[1731215153294,0.87704102,79015.0,79014.0,0.0702505]
[1731215153524,1.00928379,79015.0,79014.0,0.0702505]
[1731215153731,1.01428379,79015.0,79014.0,0.0702505]
[1731215153939,0.87504102,79015.0,79014.0,0.0702505]
[1731215154376,0.87704102,79015.0,79014.0,0.0702505]
[1731215154811,0.87504102,79015.0,79014.0,0.02531]
[1731215155018,0.87504102,79015.0,79014.0,0.07016712]
[1731215155827,0.18134102,79015.0,79014.0,0.07016712]
[1731215156568,0.13224102,79015.0,79014.0,0.07016712]
[1731215156784,0.0826,79028.0,79014.0,0.07016712]
[1731215156785,0.005836,79039.0,79015.0,0.005]
[1731215156994,0.005836,79039.0,79013.0,0.28657814]
[1731215156995,0.18977613,79022.0,79020.0,0.02531]
[1731215157192,0.18977613,79030.0,79021.0,0.22480247]
[1731215157411,0.16453613,79030.0,79023.0,0.02531]
[1731215157623,0.16453613,79030.0,79000.0,0.005]
[1731215157624,0.16453613,79030.0,79025.0,0.02524]
[1731215157818,0.16453613,79030.0,79027.0,0.02524]
[1731215158067,0.16453613,79030.0,79028.0,0.00472846]
[1731215158271,0.16453613,79030.0,79002.0,0.000839]
[1731215158476,0.14869463,79029.0,79002.0,0.000839]
[1731215158679,0.14869463,79029.0,79014.0,0.02524]
[1731215158883,0.18977613,79028.0,79014.0,0.02524]
[1731215159086,0.13224102,79027.0,79014.0,0.02524]
[1731215159330,0.03384708,79026.0,79014.0,0.02524]
[1731215159474,0.13224102,79025.0,79014.0,0.02524]
[1731215160463,0.0792,79036.0,79018.0,0.02524]
[1731215160680,0.005836,79039.0,79020.0,0.02524]
[1731215160681,0.18977613,79035.0,79020.0,0.02524]
[1731215160889,0.005836,79039.0,79027.0,0.02524]
[1731215161094,0.18977613,79035.0,79029.0,0.02524]
[1731215161299,0.18977613,79035.0,79031.0,0.02524]
[1731215161526,0.005836,79039.0,79030.0,0.13224102]
[1731215161527,0.005836,79039.0,79033.0,0.02524]
[1731215161702,0.005836,79039.0,79035.0,0.02524]
[1731215162069,0.005836,79039.0,79035.0,0.15748102]
[1731215162354,0.005836,79039.0,79037.0,0.02524]
[1731215162576,0.005836,79039.0,79038.0,0.15748102]
[1731215162910,0.007514,79039.0,79038.0,0.15748102]
[1731215163136,0.18977613,79059.0,79038.0,0.15748102]
[1731215164040,0.18977613,79059.0,79038.0,0.16248102]
[1731215164150,0.18977613,79050.0,79038.0,0.15748102]
[1731215164558,0.18977613,79050.0,79039.0,0.02524]
[1731215165629,0.84491863,79049.0,79030.0,0.02524]
[1731215165764,0.15121863,79049.0,79029.0,1.7667]
[1731215166004,0.30080028,79030.0,79029.0,1.7667]
[1731215166217,0.4330413,79030.0,79029.0,1.7667]
[1731215166434,0.6937,79039.0,79029.0,1.7667]
[1731215166625,0.18977613,79037.0,79029.0,1.7667]
[1731215166883,0.13224102,79036.0,79029.0,1.7667]
[1731215167121,0.13224102,79036.0,79023.0,0.02524]
[1731215167122,0.30080028,79030.0,79023.0,0.02524]
[1731215167324,0.0799,79023.0,78981.0,0.005]
[1731215167524,0.13224102,79022.0,79005.0,0.18977613]
[1731215167800,0.30080028,79014.0,78981.0,0.005]
[1731215167941,0.13224102,79013.0,78981.0,0.005]
[1731215168145,0.0799,79023.0,78982.0,0.03024]
[1731215168343,0.18977613,79021.0,79004.0,0.02524]
[1731215168546,0.18977613,79029.0,79006.0,0.02524]
[1731215168756,0.18977613,79021.0,79008.0,0.02524]
[1731215168968,0.18977613,79021.0,79010.0,0.02524]
[1731215169170,0.18977613,79029.0,79012.0,0.02524]
[1731215169385,0.18977613,79021.0,79014.0,0.02524]
[1731215170005,0.18977613,79029.0,79016.0,0.02524]
[1731215170208,0.18977613,79021.0,79018.0,0.02524]
[1731215170416,0.18977613,79037.0,79002.0,0.000839]
[1731215170417,0.18977613,79037.0,79020.0,0.02524]
[1731215170615,0.18977613,79029.0,79022.0,0.02524]
[1731215170818,0.18977613,79029.0,79024.0,0.02524]
[1731215171131,0.18977613,79029.0,79026.0,0.02524]
[1731215171351,0.18977613,79029.0,79027.0,0.04769582]
[1731215171568,0.13224102,79036.0,79027.0,0.04769582]
[1731215171767,0.13224102,79036.0,79028.0,0.02245582]
[1731215171898,0.13224102,79036.0,79029.0,0.02245582]
[1731215172105,0.0488,79044.0,79030.0,0.02245582]
[1731215172350,0.30080028,79031.0,79008.0,0.00253097]
[1731215172509,0.30080028,79019.0,79017.0,0.18977613]
[1731215172710,0.6937,79036.0,79028.0,0.01267144]
[1731215172913,0.18977613,79032.0,79028.0,0.01267144]
[1731215173130,0.6937,79038.0,79028.0,0.01267144]
[1731215173589,0.18977613,79037.0,79028.0,0.01267144]
[1731215173804,0.6937,79038.0,79028.0,0.00010288]
[1731215174117,0.18977613,79037.0,79028.0,0.00010288]
[1731215174344,0.6937,79047.0,79028.0,0.00010288]
[1731215174758,0.18977613,79048.0,79021.0,0.1]
[1731215174759,0.18977613,79040.0,79030.0,0.00010288]
[1731215175388,0.001678,79041.0,79030.0,0.00010288]
[1731215175790,0.001678,79041.0,79031.0,0.1323439]
[1731215176315,0.18977613,79040.0,79031.0,0.1323439]
[1731215176899,0.18977613,79040.0,79029.0,0.00510288]
[1731215177106,0.18977613,79040.0,79032.0,0.00010288]
[1731215177867,0.001678,79041.0,79032.0,0.00010288]
[1731215178079,0.001678,79041.0,79034.0,0.00010288]
[1731215178303,0.001678,79041.0,79036.0,0.00010288]
[1731215178498,0.001678,79041.0,79036.0,0.1323439]
[1731215178976,0.001678,79041.0,79036.0,0.00010288]
[1731215179369,0.18977613,79040.0,79026.0,0.00253045]
[1731215179603,0.21381866,79040.0,79006.0,0.00010288]
[1731215179816,0.00489712,79037.0,79011.0,0.32201715]
[1731215180030,0.18977613,79032.0,79012.0,0.02524]
[1731215180205,0.18977613,79032.0,79014.0,0.02524]
[1731215180411,0.18977613,79024.0,79016.0,0.02524]
[1731215180587,0.6937,79030.0,79016.0,0.02524]
[1731215181194,0.18977613,79021.0,79016.0,0.02524]
[1731215181398,0.00489712,79022.0,79017.0,0.02524]
[1731215182040,0.18977613,79021.0,79017.0,0.02524]
[1731215182194,0.82594102,79020.0,79017.0,0.02524]
[1731215182400,0.66846,79020.0,79002.0,0.00253128]
[1731215182637,0.18977613,79019.0,79001.0,0.20772928]
[1731215182845,0.18977613,79019.0,79001.0,0.3399703]
[1731215183080,0.61798,79020.0,79001.0,0.3399703]
[1731215183081,0.61798,79020.0,79004.0,0.005]
[1731215183274,0.19467325,79032.0,79004.0,0.005]
[1731215183275,0.18977613,79019.0,79007.0,0.00010288]
[1731215183496,0.18977613,79019.0,79009.0,0.1]
[1731215183648,0.18977613,79019.0,79010.0,0.15748102]
[1731215183838,0.00253128,79031.0,79010.0,0.16001197]
[1731215184080,0.18977613,79018.0,79010.0,0.15748102]
[1731215184257,0.00253128,79031.0,79012.0,0.02524]
[1731215184437,0.18977613,79032.0,79014.0,0.02524]
[1731215184655,0.18977613,79031.0,79016.0,0.12524]
[1731215184841,0.00253128,79039.0,79018.0,0.13024]
[1731215185049,0.18977613,79031.0,79020.0,0.02524]
[1731215185259,0.18977613,79031.0,79022.0,0.02524]
[1731215185466,0.001678,79041.0,79018.0,0.1]
[1731215185467,0.001678,79041.0,79024.0,0.02524]
[1731215185689,0.001678,79041.0,79026.0,0.02524]
[1731215185907,0.001678,79041.0,79028.0,0.12524]
[1731215186275,0.001678,79041.0,79030.0,0.02524]
[1731215186530,0.001678,79041.0,79018.0,0.1]
[1731215186531,0.001678,79041.0,79039.0,0.02524]
[1731215186722,0.00489712,79068.0,79037.0,0.005]
[1731215186723,0.18977613,79050.0,79043.0,0.02524]
[1731215186902,0.18977613,79050.0,79042.0,0.02524]
[1731215187339,0.16453613,79050.0,79041.0,0.07471432]
[1731215187546,0.16453613,79050.0,79030.0,0.00010288]
[1731215187547,0.18977613,79042.0,79030.0,0.00010288]
[1731215187759,0.16453613,79050.0,79035.0,0.00010288]
[1731215187961,0.16453613,79050.0,79036.0,0.02524]
[1731215188111,0.18977613,79058.0,79038.0,0.02524]
[1731215188346,0.18977613,79049.0,79040.0,0.02524]
[1731215188540,0.00253128,79057.0,79040.0,0.02524]
[1731215188914,0.18977613,79058.0,79042.0,0.02524]
[1731215189099,0.18977613,79058.0,79044.0,0.02524]
[1731215189827,0.18977613,79057.0,79044.0,0.02524]
[1731215190262,0.18977613,79057.0,79043.0,0.02524]
[1731215190263,0.00253128,79056.0,79043.0,0.02524]
[1731215190635,0.18977613,79057.0,79043.0,0.15748102]
[1731215191068,0.00253128,79056.0,79043.0,0.15748102]
[1731215191550,0.00253128,79056.0,79035.0,0.00010288]
[1731215191763,0.00253128,79056.0,79036.0,0.12524]
[1731215192172,0.00253128,79056.0,79038.0,0.02524]
[1731215192405,0.18977613,79049.0,79038.0,0.02524]
[1731215192604,0.18977613,79058.0,79040.0,0.02524]
[1731215192735,0.00253128,79057.0,79040.0,0.15748102]
[1731215192939,0.18977613,79044.0,79042.0,0.02524]
[1731215193338,0.0074284,79055.0,79042.0,0.02524]
[1731215193534,0.18977613,79054.0,79042.0,0.02524]
[1731215193864,0.000717,79060.0,79044.0,0.02524]
[1731215194074,0.18977613,79056.0,79046.0,0.02524]
[1731215194294,0.18977613,79056.0,79048.0,0.02524]
[1731215194671,0.00253128,79055.0,79048.0,0.02524]
[1731215195330,0.00253128,79055.0,79033.0,0.1]
[1731215195331,0.00253128,79055.0,79034.0,0.02524]
[1731215195500,0.13224102,79054.0,79034.0,0.02524]
[1731215195702,0.00253128,79053.0,79034.0,0.02524]
[1731215195900,0.13224102,79052.0,79034.0,0.02524]
[1731215196128,0.18977613,79040.0,79012.0,0.00010288]
[1731215196381,0.00489712,79033.0,79018.0,0.02524]
[1731215196582,0.1347723,79032.0,79026.0,0.02524]
[1731215197396,0.13224102,79032.0,79026.0,0.02524]
[1731215197549,0.00489712,79033.0,79015.0,0.02524]
[1731215197757,0.13713814,79033.0,79015.0,0.02524]
[1731215198341,0.02479215,79055.0,79010.0,0.000839]
[1731215198342,0.18977613,79040.0,79017.0,0.02524]
[1731215198691,0.18977613,79032.0,79019.0,0.02524]
[1731215198886,0.18977613,79040.0,79021.0,0.02524]
[1731215199087,0.18977613,79040.0,79023.0,0.02524]
[1731215199317,0.18977613,79040.0,79025.0,0.02524]
[1731215199525,0.18977613,79040.0,79027.0,0.12524]
[1731215199693,0.18977613,79040.0,79029.0,0.02524]
[1731215199899,0.18977613,79040.0,79031.0,0.02524]
[1731215200111,0.18977613,79040.0,79033.0,0.02524]
[1731215200511,0.00489712,79053.0,79033.0,0.02524]
[1731215200715,0.00489712,79055.0,79033.0,0.02524]
[1731215200891,0.00489712,79052.0,79033.0,0.02524]
[1731215201089,0.00489712,79052.0,79034.0,0.02524]
[1731215201315,0.19145413,79056.0,79036.0,0.12524]
[1731215201540,0.18977613,79046.0,79037.0,0.12524]
[1731215201706,0.19145413,79056.0,79037.0,0.12524]
[1731215201933,0.18977613,79048.0,79037.0,0.02524]
[1731215202279,0.00489712,79053.0,79037.0,0.02524]
[1731215202582,0.00489712,79053.0,79024.0,0.02524]
[1731215202819,0.19145413,79056.0,79027.0,0.12524]
[1731215203027,0.18977613,79051.0,79036.0,0.12524]
[1731215203223,0.16453613,79051.0,79036.0,0.1]
[1731215203348,0.16453613,79051.0,79036.0,0.02524]
[1731215203570,0.16453613,79051.0,79023.0,0.005]
[1731215203571,0.00489712,79037.0,79007.0,0.005]
[1731215203808,0.76684243,79050.0,79027.0,0.02524]
[1731215203809,0.61798,79042.0,79027.0,0.02524]
[1731215204015,0.18977613,79041.0,79028.0,0.15748102]
[1731215204209,0.18977613,79040.0,79028.0,0.02524]
[1731215204658,0.32201715,79040.0,79028.0,0.02524]
[1731215204826,0.13207974,79039.0,79028.0,0.02524]
[1731215204988,0.61798,79042.0,79032.0,0.02524]